Cogmind - Beta 14 *** ADVENTURER MODE // 2024.09.16 @ 07:27:54 // Winter2019/RPGLIKE Player: Gallgagger Result: Destroyed by B-99 Colossus with Multirail Performance ------------- Evolutions (9) 4500 Regions Visited (21) 4200 Robots Destroyed (237) 1185 Value Destroyed (11012) 11012 Prototype IDs (42) 840 Alien Tech Used (1) 200 Bonus (14453) 14453 TOTAL SCORE: 36390 Bonus ------- Triggered High Security 500 High Alert Combat Kills 4447 Follower Combat Kills 5326 Entered Garrisons 400 Entered DSFs 500 Acquired ECA 300 Met Warlord at Base 500 MAIN.C Attacked Warlord 500 Met Warlord at Research 2000 Friendly Fire -20 Cogmind --------- Core Integrity 0/1450 Matter 300/300 Energy 216/220 System Corruption 0% Temperature Cool (10) Movement Flying (28) Location -1/Access Parts ------- > --- POWER (2) -------- Micro Fission Core Light Antimatter Reactor > --- PROPULSION (5) --- Q-thruster Q-thruster Q-thruster Q-thruster Q-thruster > --- UTILITY (10) ----- Improved Heat Sink Weight Redist. System Advanced Sensor Array Advanced Signal Interpreter Weapon Mount Transmission Jammer Thermal Shield Experimental Hacking Suite > --- WEAPON (5) ------- Enhanced Quantum Rifle Enhanced Quantum Rifle Centrium Greatsword Plasma Lance > --- INVENTORY (4) ---- Xenon Bombardment Thruster Advanced Phase Shifter Advanced Force Field Authchip [R/NC] Peak State ------------ > --- POWER ------------ Micro Fission Core Light Antimatter Reactor > --- PROPULSION ------- Q-thruster Q-thruster Q-thruster Q-thruster Q-thruster > --- UTILITY ---------- Improved Heat Sink Weight Redist. System Makeshift Trap Scanner Machine Analyzer Advanced Sensor Array Advanced Signal Interpreter Weapon Mount Transmission Jammer Advanced Force Field Experimental Hacking Suite > --- WEAPON ----------- Enhanced Quantum Rifle Enhanced Quantum Rifle Centrium Greatsword Plasma Lance > --- INVENTORY -------- Xenon Bombardment Thruster Impulse Thruster Advanced Phase Shifter Authchip [R/NC] [Rating: 146] Favorites ----------- Power Light Angular Momentum Engine Engine Light Angular Momentum Engine Power Core Micro Fission Core Reactor Light Antimatter Reactor Propulsion Field Propulsion Drive Hover Unit Hover Unit Flight Unit Field Propulsion Drive Utility Machine Analyzer Device Advanced Sensor Array Processor Machine Analyzer Hackware System Shield Protection Layered Medium Armor Plating Weapon Enhanced Quantum Rifle Energy Gun Enhanced Quantum Rifle Impact Weapon Heavy Mace Slashing Weapon Centrium Greatsword Piercing Weapon Force Lance Build | -11 -10 -10 -10 -9 -8 -7 -6 -6 -5 -5 -5 -5 -4 -4 -4 -4 -4 -4 -3 -2 -1 ------- Run | Yrd Mat Min Exi Min Mat Fac Fac DSF Fac Upp Upp War Pro Fac Gar Fac Gar Arm Res Res Acc Slots Evolved 18 | 1 3 1 . 1 3 1 . . . 3 1 . . . 2 . . . . 2 . Power 1 | . . . . . 1 . . . . . . . . . . . . . . . . Propulsion 4 | . 2 . . 1 . . . . . . . . . . 1 . . . . . . Utility 9 | . 1 1 . . 2 1 . . . 2 1 . . . 1 . . . . . . Weapon 4 | 1 . . . . . . . . . 1 . . . . . . . . . 2 . Parts Attached 102 | 4 11 1 . 1 14 7 1 1 10 3 2 2 . . 3 6 2 15 11 5 3 Power 8 | 1 . 1 . . 3 1 . . . . . . . . . . . 1 . 1 . Engine 5 | 1 . . . . 3 1 . . . . . . . . . . . . . . . Core 2 | . . 1 . . . . . . . . . . . . . . . 1 . . . Reactor 1 | . . . . . . . . . . . . . . . . . . . . 1 . Propulsion 29 | . 6 . . 1 2 . 1 . 3 . . . . . . 2 . 7 6 . 1 Treads . | . . . . . . . . . . . . . . . . . . . . . . Leg . | . . . . . . . . . . . . . . . . . . . . . . Wheel . | . . . . . . . . . . . . . . . . . . . . . . Hover 3 | . 3 . . . . . . . . . . . . . . . . . . . . Flight 26 | . 3 . . 1 2 . 1 . 3 . . . . . . 2 . 7 6 . 1 Utility 45 | . 3 . . . 5 6 . 1 7 2 2 . . . 1 3 2 5 5 1 2 Device 21 | . 1 . . . 2 3 . 1 1 2 2 . . . 1 . 2 2 2 . 2 Storage . | . . . . . . . . . . . . . . . . . . . . . . Processor 5 | . 2 . . . 2 . . . . . . . . . . . . . 1 . . Hackware 17 | . . . . . 1 3 . . 6 . . . . . . 3 . 3 . 1 . Protection 2 | . . . . . . . . . . . . . . . . . . . 2 . . Artifact . | . . . . . . . . . . . . . . . . . . . . . . Weapon 20 | 3 2 . . . 4 . . . . 1 . 2 . . 2 1 . 2 . 3 . Energy Gun 13 | 3 2 . . . 4 . . . . . . . . . 2 . . 2 . . . Energy Cannon . | . . . . . . . . . . . . . . . . . . . . . . Ballistic Gun . | . . . . . . . . . . . . . . . . . . . . . . Ballistic Cannon . | . . . . . . . . . . . . . . . . . . . . . . Launcher . | . . . . . . . . . . . . . . . . . . . . . . Special Weapon . | . . . . . . . . . . . . . . . . . . . . . . Impact Weapon 2 | . . . . . . . . . . 1 . 1 . . . . . . . . . Slashing Weapon 2 | . . . . . . . . . . . . . . . . . . . . 2 . Piercing Weapon 3 | . . . . . . . . . . . . 1 . . . 1 . . . 1 . Special Melee Weapon . | . . . . . . . . . . . . . . . . . . . . . . Unidentified Prototypes 6 | . . . . . 2 . . . . 1 . 1 . . . . . . . 2 . Parts Lost 2 | . . . . . . . . . . . . . . . . . . . 1 . 1 Power . | . . . . . . . . . . . . . . . . . . . . . . Propulsion 1 | . . . . . . . . . . . . . . . . . . . 1 . . Utility 1 | . . . . . . . . . . . . . . . . . . . . . 1 Weapon . | . . . . . . . . . . . . . . . . . . . . . . Highest Loss Streak 1 | . . . . . . . . . . . . . . . . . . . 1 . 1 To Critical Strikes . | . . . . . . . . . . . . . . . . . . . . . . Average Slot Usage (%) 96 | . 94 98 88 89 98 99 100 100 97 99 99 100 94 94 90 91 94 95 97 96 90 Engine 9 | . 12 5 . . 8 14 14 14 14 12 11 11 11 11 10 10 10 9 5 3 . Core 1 | . . 6 11 10 5 . . . . . . . . . . . . . 5 4 4 Flight 26 | . 29 36 33 37 35 28 28 28 28 25 22 22 22 22 20 21 25 24 24 22 20 Device 25 | . 10 11 11 10 12 19 21 21 18 25 29 33 27 27 27 30 29 30 30 32 28 Processor 11 | . 8 11 11 10 12 14 14 14 14 12 11 11 11 11 10 10 10 10 10 9 9 Hackware 4 | . . . . . 4 7 7 7 7 5 5 5 5 5 5 5 5 5 5 4 4 Energy Gun 12 | . 25 24 22 20 17 14 14 14 14 12 11 11 11 11 10 10 10 9 10 9 9 Impact Weapon 1 | . . . . . . . . . . . 5 5 5 5 5 4 . . . . . Piercing Weapon 1 | . . . . . . . . . . . . . . . . . 5 5 5 4 4 Peak Build Rating 146 | 3 8 10 10 11 38 44 44 49 62 72 79 84 73 73 86 96 106 106 119 143 146 Average Rating 76 | 2 7 9 10 10 27 39 43 47 57 64 72 78 73 73 78 87 96 97 108 134 136 On Entrance 58 | . 3 8 10 10 11 38 40 44 49 59 72 78 78 73 73 86 96 106 99 119 143 Naked Turns . | . . . . . . . . . . . . . . . . . . . . . . Heaviest Build 54 | 9 10 10 10 10 26 32 32 32 33 37 42 42 42 42 48 51 54 54 49 50 50 Greatest Support 61 | 13 28 22 22 26 28 34 36 36 43 37 42 42 42 42 48 55 55 55 61 61 61 Greatest Overweight (x) 1 | . . . . . . . . . . . . . . . . . . 1 . . . Average Overweight (x) . | . . . . . . . . . . . . . . . . . . . . . . Largest Inventory Capacity 4 | . 1 1 1 1 4 4 4 4 4 4 4 4 4 4 4 4 4 4 4 4 4 Average Capacity 3 | . . 1 1 1 2 4 4 4 4 4 4 4 4 4 4 4 4 4 4 4 4 Most Carried 4 | . 1 1 1 1 4 4 3 4 4 4 4 4 4 4 4 4 4 4 4 4 4 Average Carried 3 | . . 1 1 1 2 3 2 1 2 4 4 4 4 4 3 2 3 2 3 4 4 Final Capacity 4 | . 1 1 1 1 4 4 4 4 4 4 4 4 4 4 4 4 4 4 4 4 4 Final Carried 4 | . 1 1 1 1 4 2 3 4 4 4 4 4 4 4 4 3 4 3 4 4 4 Class Distribution -------------------- 28% | Hacker-Ninja 26% | Commander-Scout 18% | Hacker-Scout 10% | Hacker-Sprinter 6% | Scavenger-Mutant 5% | Commander-Ninja Dominant Class ---------------- Scavenger-Mutant | -10/Materials Scavenger-Mutant | -10/Mines Scavenger-Mutant | -10/Exiles Scavenger-Sprinter | -9/Mines Hacker-Sprinter | -8/Materials Hacker-Sprinter | -7/Factory Hacker-Scout | -6/Factory Hacker-Scout | -6/DSF Hacker-Scout | -5/Factory Commander-Scout | -5/Upper Caves Commander-Scout | -5/Upper Caves Commander-Scout | -5/Warlord Commander-Scout | -4/Proximity Caves Commander-Scout | -4/Factory Hacker-Scout | -4/Garrison Commander-Scout | -4/Factory Hacker-Scout | -4/Garrison Hacker-Ninja | -4/Armory Hacker-Ninja | -3/Research Hacker-Ninja | -2/Research Hacker-Ninja | -1/Access Resources | -11 -10 -10 -10 -9 -8 -7 -6 -6 -5 -5 -5 -5 -4 -4 -4 -4 -4 -4 -3 -2 -1 ----------- Run | Yrd Mat Min Exi Min Mat Fac Fac DSF Fac Upp Upp War Pro Fac Gar Fac Gar Arm Res Res Acc Matter Collected 1397 | 146 204 10 . 10 120 90 . 20 106 54 25 . 56 . 30 50 47 231 80 90 28 Remotely . | . . . . . . . . . . . . . . . . . . . . . . Salvage Created 10583 | . 239 421 . 44 1942 532 . 184 528 23 114 . 163 . 236 486 1163 1843 386 2075 204 Parts 561 | . 27 32 . 10 82 18 . 16 12 3 13 . 8 . . 45 63 117 22 77 16 Haulers Intercepted 9 | . 2 . . . 6 . . . . . . . . . . . . . . 1 . Recyclers Shooed 4 | . 2 . . . . . . . 2 . . . . . . . . . . . . Parts Field Recycled . | . . . . . . . . . . . . . . . . . . . . . . Retrieved Matter . | . . . . . . . . . . . . . . . . . . . . . . Parts Self-Destructed 40 | . . . . . . . . . . 8 21 . 11 . . . . . . . . Prevented 34 | . . . . . . . . . . 12 7 . 15 . . . . . . . . Kills | -11 -10 -10 -10 -9 -8 -7 -6 -6 -5 -5 -5 -5 -4 -4 -4 -4 -4 -4 -3 -2 -1 ------- Run | Yrd Mat Min Exi Min Mat Fac Fac DSF Fac Upp Upp War Pro Fac Gar Fac Gar Arm Res Res Acc Combat Hostiles Destroyed 198 | . 9 18 . 5 23 12 . 6 8 . 3 . 3 . 4 11 22 36 6 29 3 Melee 34 | . . . . . . . . . . . . . . . 1 . 8 9 1 13 2 Guns 152 | . 9 17 . 3 22 12 . 6 5 . 3 . 3 . . 11 14 27 5 14 1 AOE 4 | . . 1 . 2 1 . . . . . . . . . . . . . . . . Classes Destroyed 23 | . 3 2 . 1 6 1 . . 1 1 . . . . 1 1 1 3 . 2 . Worker 1 | . . . . . 1 . . . . . . . . . . . . . . . . Builder 1 | . . . . . . . . . . . . . . . . 1 . . . . . Tunneler 1 | . . . . . 1 . . . . . . . . . . . . . . . . Hauler 9 | . 2 . . . 6 . . . . . . . . . . . . . . 1 . Recycler 5 | . . . . . 3 . . . 1 . . . . . . . . . 1 . . Minesweeper 1 | . . . . . . . . . . 1 . . . . . . . . . . . Operator 3 | . . . . . 1 . . . . . . . . . . 1 . 1 . . . Watcher 19 | . 3 . . . 5 1 . . 1 . . . . . . 1 1 1 1 3 2 Swarmer 68 | . 9 11 . 2 7 4 . 3 2 . 2 . 2 . . 3 10 2 5 6 . Cutter 2 | . . . . . . . . . . . . . . . . . . 2 . . . Saboteur 4 | . . . . . . . . . . . . . . . . . . 3 . . 1 Grunt 43 | . . 6 . 2 6 3 . 1 1 . . . . . 2 2 5 11 . 4 . Brawler 1 | . . . . . . . . . 1 . . . . . . . . . . . . Duelist 3 | . . . . 1 . . . . . . . . . . . . . 2 . . . Sentry 22 | . . . . . 9 3 . . 1 . . . . . . 1 1 2 1 4 . Demolisher 6 | . . . . . . . . . . . . . . . . . . 3 . 3 . Specialist 1 | . . . . . . . . . . . . . . . 1 . . . . . . Hunter 16 | . . . . . 1 1 . 1 . . . . . . 1 1 3 2 . 4 2 Programmer 24 | . . . . . . 1 . 1 3 . 1 . 1 . . 4 2 9 . 2 . Behemoth 2 | . . . . . . . . . . . . . . . . . 1 . . 1 . Striker 4 | . . . . . . . . . . . . . . . . . . . . 4 . Executioner 1 | . . . . . . . . . . . . . . . . . . . . 1 . Assembled 1 | . . 1 . . . . . . . . . . . . . . . . . . . Best Kill Streak 7 | . 7 7 . 3 6 4 . 3 4 1 2 . 2 . 2 4 7 3 3 4 2 Combat Bots Only 7 | . 6 7 . 3 5 4 . 3 4 . 2 . 2 . 2 4 7 3 3 3 2 Max Kills in Single Turn 3 | . 1 2 . 2 3 1 . 1 1 1 1 . 1 . 1 1 2 2 1 1 1 Gunslinging 1 | . . 1 . . . . . . . . . . . . . . 1 1 . . . Exploded 2 | . . 1 . 2 1 . . . . . . . . . . . . . . . . Melee 1 | . . . . . . . . . . . . . . . 1 . 1 1 1 1 1 Uniques/NPCs Destroyed . | . . . . . . . . . . . . . . . . . . . . . . Combat | -11 -10 -10 -10 -9 -8 -7 -6 -6 -5 -5 -5 -5 -4 -4 -4 -4 -4 -4 -3 -2 -1 -------- Run | Yrd Mat Min Exi Min Mat Fac Fac DSF Fac Upp Upp War Pro Fac Gar Fac Gar Arm Res Res Acc Hostile Shots Fired 1386 | . 24 32 . 10 88 116 . 24 41 20 26 28 9 . 90 37 91 228 77 183 262 Missed 655 | . 5 15 . 4 38 73 . 10 26 10 15 19 6 . 45 18 40 93 36 83 119 Damage Taken 10680 | . 137 144 . 37 724 405 . 227 314 149 292 173 81 . 633 279 643 2072 701 1858 1811 Core 8577 | . 114 116 . 28 608 336 . 181 261 125 244 145 70 . 507 232 508 1684 500 1491 1427 Absorbed by Shields . | . . . . . . . . . . . . . . . . . . . . . . Redirected to Core 6801 | . 62 87 . 22 376 225 . 148 178 78 163 101 37 . 423 151 465 1331 425 1245 1284 Ignored by Resistances 5961 | . 46 46 . 13 200 127 . 65 88 42 83 88 29 . 396 175 427 1342 374 1173 1247 Core Remaining (%) 77 | 100 . . . 100 54 53 . 83 . . . . 100 . . . . 62 48 97 . Volleys Fired 518 | . 22 25 . 9 90 35 . 19 35 19 16 6 7 . 20 29 30 73 11 57 15 Largest 2 | . 2 2 . 2 2 2 . 2 2 2 2 2 2 . 2 2 2 2 2 2 2 Hottest 130 | . 100 80 . 80 110 110 . 110 110 110 110 110 110 . 130 130 130 130 130 130 130 Shots Fired 1028 | . 44 50 . 18 180 70 . 38 70 32 32 12 14 . 40 58 60 144 22 114 30 Gun 1028 | . 44 50 . 18 180 70 . 38 70 32 32 12 14 . 40 58 60 144 22 114 30 Cannon . | . . . . . . . . . . . . . . . . . . . . . . Launcher . | . . . . . . . . . . . . . . . . . . . . . . Special . | . . . . . . . . . . . . . . . . . . . . . . Kinetic . | . . . . . . . . . . . . . . . . . . . . . . Thermal 884 | . 38 . . . 110 70 . 38 70 32 32 12 14 . 40 58 60 144 22 114 30 Explosive . | . . . . . . . . . . . . . . . . . . . . . . Electromagnetic 144 | . 6 50 . 18 70 . . . . . . . . . . . . . . . . Robot Hit Streak 48 | . 13 22 . 20 20 23 . 14 42 9 29 4 17 . 17 28 16 35 25 48 48 Robot Miss Streak 3 | . 2 2 . 1 2 2 . 1 1 1 3 1 . . 2 2 2 1 . 1 1 Penetration Max . | . . . . . . . . . . . . . . . . . . . . . . Secondary Targets 21 | . . 4 . . . 2 . 1 . . . . . . . 1 3 6 . 3 1 Max Gunslinging Chain 1 | . . 1 . . . 1 . 1 . . . . . . . 1 1 1 . 1 1 Shots Hit Robots 945 | . 29 41 . 13 142 59 . 29 61 17 27 9 17 . 47 48 62 150 24 146 24 Core Hits 378 | . 16 23 . 7 67 25 . 11 19 6 7 8 7 . 5 22 26 56 11 51 11 Critical Kills . | . . . . . . . . . . . . . . . . . . . . . . Critical Parts Destroyed 2 | . . . . . . . . . . . . . . . 2 . . . . . . Critical Strikes 35 | . 1 1 . . 3 5 . 1 3 . . . 1 . 2 . 5 3 2 6 2 Burn 14 | . 1 . . . 3 5 . 1 3 . . . 1 . . . . . . . . Corrupt 1 | . . 1 . . . . . . . . . . . . . . . . . . . Smash 2 | . . . . . . . . . . . . . . . 2 . . . . . . Sever 8 | . . . . . . . . . . . . . . . . . . . . 6 2 Impale 10 | . . . . . . . . . . . . . . . . . 5 3 2 . . Melee Attacks 165 | . . . . . . . . . . 1 . . 4 . 20 . 37 32 8 44 19 Impact 25 | . . . . . . . . . . 1 . . 4 . 20 . . . . . . Slashing 47 | . . . . . . . . . . . . . . . . . . . . 32 15 Piercing 93 | . . . . . . . . . . . . . . . . . 37 32 8 12 4 Sneak Attacks 18 | . . . . . . . . . . . . . 1 . 3 . 4 3 2 3 2 Combat Hostiles 15 | . . . . . . . . . . . . . 1 . 3 . 4 3 . 2 2 Follow-up Attacks 10 | . . . . . . . . . . . . . . . . . . . . 7 3 Damage Inflicted 31081 | . 414 576 . 260 2947 1199 . 635 1335 336 587 167 515 . 1690 1905 2951 6355 1042 6754 1413 Guns 22424 | . 414 528 . 151 2678 1199 . 635 1335 336 587 167 305 . 786 1905 1719 4712 669 3867 431 Cannons . | . . . . . . . . . . . . . . . . . . . . . . Explosions 426 | . . 48 . 109 269 . . . . . . . . . . . . . . . . Melee 8231 | . . . . . . . . . . . . . 210 . 904 . 1232 1643 373 2887 982 Ramming . | . . . . . . . . . . . . . . . . . . . . . . Kinetic . | . . . . . . . . . . . . . . . . . . . . . . Thermal 21100 | . 348 48 . 109 1942 1199 . 635 1335 336 587 167 305 . 786 1905 1719 4712 669 3867 431 Explosive . | . . . . . . . . . . . . . . . . . . . . . . Electromagnetic 1750 | . 66 528 . 151 1005 . . . . . . . . . . . . . . . . Impact 1114 | . . . . . . . . . . . . . 210 . 904 . . . . . . Slashing 3137 | . . . . . . . . . . . . . . . . . . . . 2331 806 Piercing 3980 | . . . . . . . . . . . . . . . . . 1232 1643 373 556 176 Highest Corruption 8 | . . . . . . . . . 1 1 3 3 . . . 2 3 8 2 1 . Average Corruption 2 | . . . . . . . . . 1 1 2 3 . . . 1 2 4 1 1 . Corruption Purged . | . . . . . . . . . . . . . . . . . . . . . . Corruption Blocked . | . . . . . . . . . . . . . . . . . . . . . . Effects 74 | . . . . . . . . . 2 9 9 . . . . 2 6 46 . . . Message Errors 16 | . . . . . . . . . . 3 1 . . . . 1 1 10 . . . Matter Fused 24 | . . . . . . . . . 2 3 4 . . . . 1 1 13 . . . Heat Flow Errors 6 | . . . . . . . . . . . 1 . . . . . 1 4 . . . Energy Discharges 6 | . . . . . . . . . . 1 1 . . . . . 1 3 . . . Parts Rejected 1 | . . . . . . . . . . . . . . . . . . 1 . . . Data Loss (minor) 7 | . . . . . . . . . . 1 . . . . . . . 6 . . . Data Loss (major) 6 | . . . . . . . . . . 1 1 . . . . . 2 2 . . . Misfires 1 | . . . . . . . . . . . . . . . . . . 1 . . . Alerts 4 | . . . . . . . . . . . 1 . . . . . . 3 . . . Weapon Failures 3 | . . . . . . . . . . . . . . . . . . 3 . . . Overload Shots . | . . . . . . . . . . . . . . . . . . . . . . Overflow Damage 918 | . . . . . . . . . . . . . 6 . 218 . 310 157 . 215 12 Projectiles . | . . . . . . . . . . . . . . . . . . . . . . Explosions . | . . . . . . . . . . . . . . . . . . . . . . Melee 918 | . . . . . . . . . . . . . 6 . 218 . 310 157 . 215 12 Knockbacks 4 | . . . . . . . . . . . . . . . 4 . . . . . . Impact 3 | . . . . . . . . . . . . . . . 3 . . . . . . Kinetic . | . . . . . . . . . . . . . . . . . . . . . . Secondary 1 | . . . . . . . . . . . . . . . 1 . . . . . . Self-Inflicted Damage 153 | . . . . 4 149 . . . . . . . . . . . . . . . . Shots 6 | . . . . 1 5 . . . . . . . . . . . . . . . . Rammed . | . . . . . . . . . . . . . . . . . . . . . . Targets Rammed . | . . . . . . . . . . . . . . . . . . . . . . Kicked . | . . . . . . . . . . . . . . . . . . . . . . Crushed . | . . . . . . . . . . . . . . . . . . . . . . Highest Temperature 340 | . 340 8 . . 31 42 . 4 230 . 232 . . . 24 25 193 267 . 25 . Average Temperature 62 | . 119 8 . . 8 15 . 2 79 . 120 . . . 9 6 69 68 . 11 . Received Heat Transfer 2325 | . . 81 . 6 234 90 . 51 66 54 27 42 9 . 189 54 310 650 66 126 270 Siege Activations . | . . . . . . . . . . . . . . . . . . . . . . Robots Corrupted 3 | . . . . . . . . . . . . . . . 3 . . . . . . Combat Hostiles 3 | . . . . . . . . . . . . . . . 3 . . . . . . Parts Fried 26 | . 2 2 . . 9 . . . . . . . . . 5 6 . . . 2 . Impact Corruptions 8 | . . . . . . . . . . . . . 1 . 7 . . . . . . Robots Melted 6 | . . . . . . . . . 4 . . . . . . . . . . 2 . Combat Hostiles 5 | . . . . . . . . . 3 . . . . . . . . . . 2 . Parts Melted 56 | . 2 . . . 15 9 . . 6 1 . . 1 . . 4 . 7 1 10 . Heat Transferred 27688 | . 1110 100 . 150 3691 2553 . 1147 2479 629 999 221 555 . 1220 1813 1607 4551 666 3848 349 Parts Sabotaged 10 | . . . . . . . . . . . . . . . . . . 10 . . . Parts Stolen . | . . . . . . . . . . . . . . . . . . . . . . Parts Stripped . | . . . . . . . . . . . . . . . . . . . . . . Power Chain Reactions 9 | . . 1 . 2 6 . . . . . . . . . . . . . . . . Alert | -11 -10 -10 -10 -9 -8 -7 -6 -6 -5 -5 -5 -5 -4 -4 -4 -4 -4 -4 -3 -2 -1 ------- Run | Yrd Mat Min Exi Min Mat Fac Fac DSF Fac Upp Upp War Pro Fac Gar Fac Gar Arm Res Res Acc Peak Influence 1880 | . 346 485 . 137 636 502 107 334 331 . . . . 47 828 1139 1880 1847 1347 1286 1324 Initial 1100 | . . 64 . . 45 146 107 65 151 . . . . 29 28 376 703 855 1100 618 675 Average 678 | . 210 308 . 65 309 299 107 189 225 . . . . 36 535 545 1547 1050 1219 1004 876 Maximum Alert Level 5 | . 1 2 . . 2 2 . 1 1 . . . . . 3 4 5 5 4 4 4 Low Security (%) 19 | 100 40 40 . 100 32 27 100 64 52 . . . . 100 10 . . . . . . Level 1 21 | . 59 20 . . 40 54 . 35 47 . . . . . 24 53 . . . . . Level 2 9 | . . 38 . . 27 18 . . . . . . . . 32 19 . . . 7 5 Level 3 27 | . . . . . . . . . . . . . . . 33 21 9 69 . 55 80 Level 4 18 | . . . . . . . . . . . . . . . . 5 36 27 100 36 13 Level 5 3 | . . . . . . . . . . . . . . . . . 54 3 . . . High Security . | . . . . . . . . . . . . . . . . . . . . . . Max Security . | . . . . . . . . . . . . . . . . . . . . . . Sterilizations 1 | . . . . . . . . 1 . . . . . . . . . . . . . Squads Dispatched 30 | . . . . . 1 3 . 1 2 . . . . . . 7 . 12 . 1 3 Investigation 3 | . . . . . . 1 . . . . . . . . . . . . . 1 1 Extermination 10 | . . . . . . 1 . . 2 . . . . . . 2 . 4 . . 1 Reinforcement 7 | . . . . . 1 1 . 1 . . . . . . . 2 . 2 . . . Assault 10 | . . . . . . . . . . . . . . . . 3 . 6 . . 1 Garrison . | . . . . . . . . . . . . . . . . . . . . . . Intercept . | . . . . . . . . . . . . . . . . . . . . . . Searches Triggered 1 | . . . . . . . . . . . . . . . . . . . . . 1 Construction Impeded 1 | . . . . . . . . . . . . . . . . 1 . . . . . Haulers Reinforced 1 | . . . . . . . . . . . . . . . . 1 . . . . . Active Scanning Responses . | . . . . . . . . . . . . . . . . . . . . . . Cargo Convoy Interrupts . | . . . . . . . . . . . . . . . . . . . . . . Stealth | -11 -10 -10 -10 -9 -8 -7 -6 -6 -5 -5 -5 -5 -4 -4 -4 -4 -4 -4 -3 -2 -1 --------- Run | Yrd Mat Min Exi Min Mat Fac Fac DSF Fac Upp Upp War Pro Fac Gar Fac Gar Arm Res Res Acc Distress Signals 7 | . . 1 . . 1 . . . . . . . . . . 1 . 1 . 2 1 Communications Jammed 16 | . . . . . . . . . . . . . . . . . . . 11 5 . Distress Signals 16 | . . . . . . . . . . . . . . . . . . . 11 5 . Times Spotted 473 | . 13 23 . 7 35 14 . 11 16 9 9 17 8 . 23 24 35 87 16 65 61 Peak Tracking Total 16 | . 3 10 . 4 5 4 . 4 4 3 4 15 4 . 4 6 8 13 9 8 16 Tactical Retreats 24 | . . 2 . 1 1 . . . . . . . . . . . 3 4 3 2 8 Traps | -11 -10 -10 -10 -9 -8 -7 -6 -6 -5 -5 -5 -5 -4 -4 -4 -4 -4 -4 -3 -2 -1 ------- Run | Yrd Mat Min Exi Min Mat Fac Fac DSF Fac Upp Upp War Pro Fac Gar Fac Gar Arm Res Res Acc Traps Triggered 9 | . 2 . . . . . . . 2 . 2 . . . . . 1 1 1 . . Indirectly . | . . . . . . . . . . . . . . . . . . . . . . Trap Hack Attempts . | . . . . . . . . . . . . . . . . . . . . . . Triggered . | . . . . . . . . . . . . . . . . . . . . . . Disarmed . | . . . . . . . . . . . . . . . . . . . . . . Reprogrammed . | . . . . . . . . . . . . . . . . . . . . . . Reused . | . . . . . . . . . . . . . . . . . . . . . . Traps Extracted . | . . . . . . . . . . . . . . . . . . . . . . Installed . | . . . . . . . . . . . . . . . . . . . . . . Triggered 9 | . . . . . . . . . . . 1 7 1 . . . . . . . . Machines | -11 -10 -10 -10 -9 -8 -7 -6 -6 -5 -5 -5 -5 -4 -4 -4 -4 -4 -4 -3 -2 -1 ---------- Run | Yrd Mat Min Exi Min Mat Fac Fac DSF Fac Upp Upp War Pro Fac Gar Fac Gar Arm Res Res Acc Machines Disabled 17 | . . . . . . . . 2 1 1 . . . . 2 3 1 5 . . 2 Max in Single Turn 2 | . . . . . . . . . 1 1 . . . . 2 . 1 1 . . 1 Garrison Access 3 | . . . . . . . . . . . . . . . . 1 . . . 2 . Phase Generator 1 | . . . . . . . . . . . . . . . 1 . . . . . . Machines Repaired . | . . . . . . . . . . . . . . . . . . . . . . Machines Dismantled . | . . . . . . . . . . . . . . . . . . . . . . Machines Sabotaged . | . . . . . . . . . . . . . . . . . . . . . . Overloaded Fab Kills . | . . . . . . . . . . . . . . . . . . . . . . Hacking | -11 -10 -10 -10 -9 -8 -7 -6 -6 -5 -5 -5 -5 -4 -4 -4 -4 -4 -4 -3 -2 -1 --------- Run | Yrd Mat Min Exi Min Mat Fac Fac DSF Fac Upp Upp War Pro Fac Gar Fac Gar Arm Res Res Acc Machines Accessed 72 | . 7 . . . 13 8 2 . 6 3 1 10 . 1 1 5 3 3 4 3 2 Terminals 46 | . 7 . . . 11 7 2 . 4 1 . . . . 1 2 3 2 4 . 2 Fabricators 6 | . . . . . . 1 . . 1 . . . . . . 2 . 1 . 1 . Repair Stations . | . . . . . . . . . . . . . . . . . . . . . . Recycling Units 1 | . . . . . . . . . 1 . . . . . . . . . . . . Scanalyzers 1 | . . . . . 1 . . . . . . . . . . . . . . . . Garrison Access 5 | . . . . . 1 . . . . . . . . 1 . 1 . . . 2 . Total Hacks 299 | . 27 . . . 64 58 5 . 35 3 1 34 . 1 1 22 3 24 8 8 5 Successful 211 | . 16 . . . 45 33 5 . 27 3 1 34 . 1 1 15 3 17 4 4 2 Failed 85 | . 10 . . . 18 24 . . 8 . . . . . . 7 . 7 4 4 3 Catastrophic 9 | . 1 . . . 3 . . . 2 . . . . . . . . 2 . 1 . Database Lockouts 3 | . 1 . . . 1 1 . . . . . . . . . . . . . . . Manual 177 | . 23 . . . 51 41 4 . 17 . . . . . . 14 . 17 7 . 3 Terminals 199 | . 27 . . . 60 47 5 . 18 1 . . . . 1 9 3 15 8 . 5 Fabricators 48 | . . . . . . 11 . . 15 . . . . . . 10 . 9 . 3 . Repair Stations . | . . . . . . . . . . . . . . . . . . . . . . Recycling Units 2 | . . . . . . . . . 2 . . . . . . . . . . . . Scanalyzers 3 | . . . . . 3 . . . . . . . . . . . . . . . . Garrison Access 10 | . . . . . 1 . . . . . . . . 1 . 3 . . . 5 . Terminal Hacks 111 | . 9 . . . 24 17 2 . 6 3 1 34 . . 1 2 3 5 2 . 2 Record 18 | . 1 . . . . . . . . 2 . 15 . . . . . . . . . Part Schematic 2 | . . . . . 1 . . . . . . . . . . . . . . . 1 Robot Schematic 5 | . . . . . . 4 . . 1 . . . . . . . . . . . . Robot Analysis 8 | . 3 . . . 3 1 . . . . . . . . . . . 1 . . . Prototype ID Bank 23 | . 4 . . . 1 1 . . . . . 17 . . . . . . . . . Open Door 5 | . . . . . . . . . . 1 1 2 . . . . 1 . . . . Open DSF 2 | . . . . . . . 1 . . . . . . . . . . . 1 . . Level Access Points 5 | . . . . . 1 1 . . . . . . . . . 1 . 1 1 . . Branch Access Points 6 | . . . . . 1 1 . . 1 . . . . . . 1 . 1 . . 1 Emergency Access Points 3 | . . . . . . 1 . . . . . . . . 1 . 1 . . . . Machine Index 1 | . . . . . 1 . . . . . . . . . . . . . . . . Terminal Index 4 | . . . . . . 1 1 . 1 . . . . . . . . 1 . . . Fabricator Index 1 | . . . . . . 1 . . . . . . . . . . . . . . . Scanalyzer Index 1 | . . . . . . 1 . . . . . . . . . . . . . . . Alert Level 7 | . . . . . 3 2 . . 2 . . . . . . . . . . . . Unreport Threat 8 | . 1 . . . 5 1 . . 1 . . . . . . . . . . . . Locate Traps 1 | . . . . . 1 . . . . . . . . . . . . . . . . Disarm Traps 1 | . . . . . 1 . . . . . . . . . . . . . . . . Dispatch Records 1 | . . . . . 1 . . . . . . . . . . . . . . . . Security Status 1 | . . . . . 1 . . . . . . . . . . . . . . . . Surveillance Status 1 | . . . . . 1 . . . . . . . . . . . . . . . . Recall Investigation 1 | . . . . . . 1 . . . . . . . . . . . . . . . Recall Reinforcements 1 | . . . . . 1 . . . . . . . . . . . . . . . . Registered Prototypes 1 | . . . . . 1 . . . . . . . . . . . . . . . . Zone Layout 3 | . . . . . 1 1 . . . . . . . . . . . 1 . . . Patrol Navigation 1 | . . . . . . . . . . . . . . . . . 1 . . . . Fabricator Hacks 35 | . . . . . . 8 . . 12 . . . . . . 6 . 7 . 2 . Load Schematic 17 | . . . . . . 4 . . 6 . . . . . . 3 . 3 . 1 . Build 18 | . . . . . . 4 . . 6 . . . . . . 3 . 4 . 1 . Repair Station Hacks . | . . . . . . . . . . . . . . . . . . . . . . Recycling Unit Hacks . | . . . . . . . . . . . . . . . . . . . . . . Scanalyzer 3 | . . . . . 3 . . . . . . . . . . . . . . . . Insert Component 1 | . . . . . 1 . . . . . . . . . . . . . . . . Analyze 2 | . . . . . 2 . . . . . . . . . . . . . . . . Garrison Access Hacks 4 | . . . . . . . . . . . . . . 1 . 1 . . . 2 . Unlock Access 2 | . . . . . . . . . . . . . . 1 . 1 . . . . . Seal Access 2 | . . . . . . . . . . . . . . . . . . . . 2 . Unauthorized Hacks 58 | . 7 . . . 18 8 3 . 9 . . . . . . 6 . 5 2 . . Terminals 46 | . 7 . . . 17 7 3 . 5 . . . . . . 2 . 3 2 . . Track 6 | . . . . . 3 1 1 . . . . . . . . . . 1 . . . Assimilate 6 | . . . . . 4 . . . 2 . . . . . . . . . . . . Botnet 32 | . 7 . . . 9 6 1 . 3 . . . . . . 2 . 2 2 . . Operators 2 | . . . . . 1 . 1 . . . . . . . . . . . . . . Fabricators 8 | . . . . . . 1 . . 2 . . . . . . 3 . 2 . . . Prioritize 5 | . . . . . . 1 . . 1 . . . . . . 2 . 1 . . . Liberate 3 | . . . . . . . . . 1 . . . . . . 1 . 1 . . . Repair Stations . | . . . . . . . . . . . . . . . . . . . . . . Recycling Units 2 | . . . . . . . . . 2 . . . . . . . . . . . . Reject 1 | . . . . . . . . . 1 . . . . . . . . . . . . Mask 1 | . . . . . . . . . 1 . . . . . . . . . . . . Scanalyzers . | . . . . . . . . . . . . . . . . . . . . . . Garrison Access 2 | . . . . . 1 . . . . . . . . . . 1 . . . . . Reprogram 2 | . . . . . 1 . . . . . . . . . . 1 . . . . . Data Cores Recovered 2 | . . . . . . . . . . . . . . . . 1 . 1 . . . Used . | . . . . . . . . . . . . . . . . . . . . . . Hacking Detections 45 | . 5 . . . 11 6 1 . 6 . . . . 1 . 2 2 3 3 3 2 Full Trace Events 2 | . . . . . . 1 . . . . . . . . . . . . . 1 . Feedback Events . | . . . . . . . . . . . . . . . . . . . . . . Feedback Blocked . | . . . . . . . . . . . . . . . . . . . . . . Robot Schematics Acquired 5 | . . . . . . 4 . . 1 . . . . . . . . . . . . Robots Built 32 | . . . . . . 5 . . 12 . . . . . . 6 . 7 . 2 . Authchips 14 | . . . . . . 2 . . 6 . . . . . . 3 . 3 . . . Time 684 | . . . . . . 104 . . 168 . . . . . . 210 . 146 . 56 . Total Robot Build Rating 178 | . . . . . . 21 . . 72 . . . . . . 36 . 37 . 12 . Part Schematics Acquired 3 | . . . . . 2 . . . . . . . . . . . . . . . 1 Parts Built 2 | . . . . . . 2 . . . . . . . . . . . . . . . Authchips 1 | . . . . . . 1 . . . . . . . . . . . . . . . Time 12 | . . . . . . 12 . . . . . . . . . . . . . . . Total Part Build Rating 2 | . . . . . . 2 . . . . . . . . . . . . . . . Parts Repaired . | . . . . . . . . . . . . . . . . . . . . . . Time . | . . . . . . . . . . . . . . . . . . . . . . Parts Recycled . | . . . . . . . . . . . . . . . . . . . . . . Recycled Matter . | . . . . . . . . . . . . . . . . . . . . . . Retrieved Matter . | . . . . . . . . . . . . . . . . . . . . . . Retrieved Components . | . . . . . . . . . . . . . . . . . . . . . . Parts Scanalyzed 1 | . . . . . 1 . . . . . . . . . . . . . . . . Part Schematics Acquired 1 | . . . . . 1 . . . . . . . . . . . . . . . . Parts Damaged . | . . . . . . . . . . . . . . . . . . . . . . Bothacking | -11 -10 -10 -10 -9 -8 -7 -6 -6 -5 -5 -5 -5 -4 -4 -4 -4 -4 -4 -3 -2 -1 ------------ Run | Yrd Mat Min Exi Min Mat Fac Fac DSF Fac Upp Upp War Pro Fac Gar Fac Gar Arm Res Res Acc Used RIF Installer . | . . . . . . . . . . . . . . . . . . . . . . Robots Hacked . | . . . . . . . . . . . . . . . . . . . . . . Non-combat . | . . . . . . . . . . . . . . . . . . . . . . Combat . | . . . . . . . . . . . . . . . . . . . . . . Robot Hacks Applied . | . . . . . . . . . . . . . . . . . . . . . . Relay Couplers Released 1 | . . . . . . . . . . . . . . . . 1 . . . . . Machine Destruction 1 | . . . . . . . . . . . . . . . . 1 . . . . . Fabnet Peak Effective % . | . . . . . . . . . . . . . . . . . . . . . . Robots Rewired 15 | . . . . . . . . . . . . . . . . . 3 11 . 1 . Allies Hacked 10 | . . . . . . . . . . 1 1 1 1 . 3 1 1 1 . . . Hacks Repelled 4 | . . . . . . . . 1 1 . 1 . . . . 1 . . . . . Allies | -11 -10 -10 -10 -9 -8 -7 -6 -6 -5 -5 -5 -5 -4 -4 -4 -4 -4 -4 -3 -2 -1 -------- Run | Yrd Mat Min Exi Min Mat Fac Fac DSF Fac Upp Upp War Pro Fac Gar Fac Gar Arm Res Res Acc Total Allies 64 | . . 1 . . 3 5 . . 14 1 1 1 1 . 3 7 4 20 . 3 . Largest Group 15 | . . 1 . . 3 7 7 6 14 14 15 14 13 13 14 13 12 12 . 3 . Highest-Rated Group 754 | . . 31 . . 45 206 206 192 687 705 754 744 648 640 649 647 607 592 . 213 . Highest-Rated Ally 110 | . . 31 . . 26 37 37 37 54 54 54 54 54 54 54 54 56 56 . 110 . Total Orders 133 | . . . . . 6 18 2 23 17 26 . . . . 4 9 . 28 . . . STAY 66 | . . . . . 3 8 . 7 9 15 . . . . 2 4 . 18 . . . FOLLOW 53 | . . . . . 3 6 . 9 8 10 . . . . 2 5 . 10 . . . GUARD 6 | . . . . . . 4 2 . . . . . . . . . . . . . . AID 1 | . . . . . . . . . . 1 . . . . . . . . . . . DROP 1 | . . . . . . . . 1 . . . . . . . . . . . . . PICKUP 5 | . . . . . . . . 5 . . . . . . . . . . . . . COLLECT 1 | . . . . . . . . 1 . . . . . . . . . . . . . Ally Attacks 703 | . . 2 . . . 5 . 27 52 30 45 40 29 . 120 111 79 133 . 30 . Total Damage 20810 | . . 20 . . . 32 . 855 880 1386 580 2280 383 . 3372 3224 1859 4873 . 1066 . Kills 140 | . . 1 . . . . . 6 6 11 6 17 4 . 20 16 17 29 . 7 . Allies Corrupted 1 | . . . . . . . . . 1 . . . . . . . . . . . . Allies Melted 2 | . . . . . . . . . . . . . . . . . . . . 2 . Intel | -11 -10 -10 -10 -9 -8 -7 -6 -6 -5 -5 -5 -5 -4 -4 -4 -4 -4 -4 -3 -2 -1 ------- Run | Yrd Mat Min Exi Min Mat Fac Fac DSF Fac Upp Upp War Pro Fac Gar Fac Gar Arm Res Res Acc Robot Analysis Total 7 | . 3 . . . 2 1 . . . . . . . . . . . 1 . . . Derelict Logs Recovered 7 | . . 2 . 1 . . . . . 1 2 . 1 . . . . . . . . Drone Launches . | . . . . . . . . . . . . . . . . . . . . . . Drone Recoveries . | . . . . . . . . . . . . . . . . . . . . . . Exploration | -11 -10 -10 -10 -9 -8 -7 -6 -6 -5 -5 -5 -5 -4 -4 -4 -4 -4 -4 -3 -2 -1 ------------- Run | Yrd Mat Min Exi Min Mat Fac Fac DSF Fac Upp Upp War Pro Fac Gar Fac Gar Arm Res Res Acc Turns Passed 13796 | 27 392 403 47 359 1024 799 199 360 1038 807 475 357 617 5 415 1088 576 2112 596 1516 584 Spaces Moved 22051 | 42 764 680 137 448 1841 1202 211 498 1433 1459 1046 641 969 14 579 1281 999 1879 1252 3301 1375 Core 71 | 42 29 . . . . . . . . . . . . . . . . . . . . Treads . | . . . . . . . . . . . . . . . . . . . . . . Legs . | . . . . . . . . . . . . . . . . . . . . . . Wheels . | . . . . . . . . . . . . . . . . . . . . . . Hover 55 | . 55 . . . . . . . . . . . . . . . . . . . . Flight 21925 | . 680 680 137 448 1841 1202 211 498 1433 1459 1046 641 969 14 579 1281 999 1879 1252 3301 1375 Fastest Speed 28 | 50 34 34 34 31 28 28 28 28 28 34 34 34 34 34 34 30 31 29 28 28 28 Average Speed 30 | 50 35 34 34 32 28 28 28 28 32 34 34 34 34 34 34 32 31 31 28 28 29 Slowest Speed 115 | 50 60 34 34 34 31 28 28 28 34 34 34 34 34 34 34 34 31 115 33 28 31 Overloaded Moves . | . . . . . . . . . . . . . . . . . . . . . . Propulsion Burnouts . | . . . . . . . . . . . . . . . . . . . . . . Robots Hopped 108 | . 3 9 . 6 22 5 . 2 8 1 . 4 . . . 16 . 9 4 10 9 Cave-ins Triggered . | . . . . . . . . . . . . . . . . . . . . . . Exploration Rate (%) 57 | 3 81 98 48 97 98 29 6 96 20 97 96 88 95 1 64 20 91 36 26 48 34 Regions Visited 21 Branch Regions 8 Pre-discovered Areas 7 | . . 3 . 1 . . . . . 2 1 . . . . . . . . . . Known Exits Taken 17 | . 1 1 1 1 1 1 1 . 1 1 1 1 1 1 . 1 . 1 1 1 . Unknown Exits Taken 1 | 1 . . . . . . . . . . . . . . . . . . . . . Scrap Searched 11 | . . 1 . 2 . . . . . 1 5 . 2 . . . . . . . . Spaces Dug 31 | . . . . . . . . . . 7 . . . . 2 . . 1 1 2 18 Terrain Destroyed 161 | . . . . 13 18 . . . . 7 . . . . 78 7 1 11 2 6 18 Melee 8 | . . . . . . . . . . . . . . . 2 . . 1 1 . 4 Projectile 46 | . . . . . . . . . . 7 . . . . . 7 1 10 1 6 14 AOE 107 | . . . . 13 18 . . . . . . . . . 76 . . . . . . Terrain Rammed . | . . . . . . . . . . . . . . . . . . . . . . Walls Destroyed . | . . . . . . . . . . . . . . . . . . . . . . Machines Disabled . | . . . . . . . . . . . . . . . . . . . . . . Actions | -11 -10 -10 -10 -9 -8 -7 -6 -6 -5 -5 -5 -5 -4 -4 -4 -4 -4 -4 -3 -2 -1 --------- Run | Yrd Mat Min Exi Min Mat Fac Fac DSF Fac Upp Upp War Pro Fac Gar Fac Gar Arm Res Res Acc Total 27539 | 45 830 791 136 638 2146 1587 349 687 1926 1732 1132 763 1235 13 722 1879 1126 3178 1442 3693 1489 Wait 4224 | . 23 84 . 183 201 332 138 110 414 233 53 109 244 . 56 561 17 1065 143 170 88 Move 21827 | 41 757 662 136 435 1796 1191 210 493 1418 1456 1045 634 968 13 577 1249 998 1862 1243 3285 1358 Hop 94 | . 3 8 . 6 22 5 . 2 6 1 . 2 . . . 15 . 7 4 5 8 Pick Up 50 | . 1 . . . 5 1 . 20 13 . . . . . 4 1 4 . . . 1 Fast Attach 57 | 3 9 . . 1 8 1 . . 2 4 2 2 . . 2 2 . 11 5 4 1 Attach 15 | . . . . . . 3 . . 4 . . . . . 1 3 2 2 . . . Detach 1 | . . . . . . . . . . . . . . . . 1 . . . . . Swap 31 | 1 2 1 . . 6 3 1 1 4 . . . . . . 1 . 2 6 1 2 Drop 69 | . 4 . . . 11 1 . 20 12 . 1 2 1 . 5 1 1 . 7 2 1 Fire 518 | . 22 25 . 9 90 35 . 19 35 19 16 6 7 . 20 29 30 73 11 57 15 Melee 153 | . . . . . . . . . . 1 . . 4 . 20 . 37 32 8 36 15 Ram . | . . . . . . . . . . . . . . . . . . . . . . Kick . | . . . . . . . . . . . . . . . . . . . . . . Crush . | . . . . . . . . . . . . . . . . . . . . . . Escape Stasis 18 | . . . . . . . . . . . . . . . . . 18 . . . . Rewire 53 | . . . . . . . . . . . 1 . 4 . 5 . 7 35 . 1 . Trap . | . . . . . . . . . . . . . . . . . . . . . . Miscellaneous 429 | . 9 11 . 4 7 15 . 22 18 18 14 8 7 . 32 16 12 89 15 132 . Route ------- -11/Scrapyard -10/Materials (discovered 3 exits: [*Mat x2] / *Min) -10/Mines (discovered 3 exits: [*Mat x2] / *Exi) -10/Exiles -9/Mines -8/Materials (discovered 3 exits: *Fac x3) -7/Factory (discovered 6 exits: *Fac x4 / Low x2) -6/Factory -6/DSF -5/Factory (discovered 2 exits: *Upp x2) -5/Upper Caves -5/Upper Caves (discovered 2 exits: *Fac / *War) -5/Warlord -4/Proximity Caves -4/Factory (discovered 2 exits: Arm / Gar) -4/Garrison (discovered 2 exits: *Res / *Fac) -4/Factory (discovered 8 exits: Res x4 / Upp x2 / Arm / Gar) -4/Garrison (discovered 3 exits: *Arm x3) -4/Armory (discovered 2 exits: *Res x2) -3/Research (discovered 3 exits: *Res x3) -2/Research (discovered 4 exits: *Acc x2 / *Tes x2) -1/Access (discovered 1 exit: Com) History --------- Turn | Location | Event 2 | -11/Scrapyard | Discovered new exit (range 16) 11 | -11/Scrapyard | Upgraded with Weapon slot (x1) 28 | -11/Scrapyard | Entered Materials 43 | -10/Materials | Upgraded with Propulsion slot (x2) 43 | -10/Materials | Upgraded with Utility slot (x1) 127 | -10/Materials | Discovered new exit (range 15) 198 | -10/Materials | Discovered new exit (range 9) 277 | -10/Materials | Discovered new exit (range 16) 373 | -10/Materials | Central database locked down 384 | -10/Materials | Identified exit to Mines 396 | -10/Materials | Build established: Scavenger-Mutant 420 | -10/Materials | Entered Mines 420 | -10/Mines | Reached level 2 433 | -10/Mines | Learned location of Zion (-7) 471 | -10/Mines | Assembled infested the area 472 | -10/Mines | Deemed a non-threat by the Exiles lab entrance 472 | -10/Mines | Discovered new exit (range 5) 473 | -10/Mines | Identified exit to Exiles 588 | -10/Mines | Escorted by a lone wolf Derelict 608 | -10/Mines | Learned location of Storage (-9) 618 | -10/Mines | Discovered new exit (range 6) 628 | -10/Mines | Reached level 3 692 | -10/Mines | Destroyed 7 combat bots 761 | -10/Mines | Discovered new exit (range 9) 766 | -10/Mines | Upgraded with Utility slot (x1) 823 | -10/Mines | Entered Exiles 832 | -10/Exiles | Met 8R-AWN 838 | -10/Exiles | Met EX-HEX 851 | -10/Exiles | Met EX-DEC 865 | -10/Exiles | Discovered new exit (range 14) 869 | -10/Exiles | Identified exit to Mines 870 | -10/Exiles | Entered Mines 872 | -9/Mines | Reached level 4 999 | -9/Mines | Discovered new exit (range 15) 1003 | -9/Mines | Identified exit to Materials 1027 | -9/Mines | Upgraded with Propulsion slot (x1) 1229 | -9/Mines | Entered Materials 1231 | -8/Materials | Reached level 5 1231 | -8/Materials | Reached level 6 1355 | -8/Materials | Reached level 7 1492 | -8/Materials | Discovered new exit (range 12) 1591 | -8/Materials | Build established: Hacker-Sprinter 1655 | -8/Materials | Upgraded with Power slot (x1) 1783 | -8/Materials | Core integrity fell below 50% 1783 | -8/Materials | Reached level 8 1917 | -8/Materials | Upgraded with Utility slot (x1) 1993 | -8/Materials | Identified exit to Factory 1993 | -8/Materials | Reached level 9 2003 | -8/Materials | Upgraded with Utility slot (x1) 2151 | -8/Materials | Central database locked down 2253 | -8/Materials | Entered Factory 2253 | -7/Factory | Accompanied by 2 allies 2255 | -7/Factory | Reached level 10 2280 | -7/Factory | Discovered new exit (range 15) 2284 | -7/Factory | Identified exit to Factory 2298 | -7/Factory | Identified exit to Lower Caves 2344 | -7/Factory | Core integrity fell below 50% 2406 | -7/Factory | Upgraded with Utility slot (x1) 2508 | -7/Factory | Reached level 11 2586 | -7/Factory | Central database locked down 2620 | -7/Factory | Fabricated Sensor Array (x2) 2657 | -7/Factory | Fabricated P-60 Hacker (x2) 2695 | -7/Factory | Fabricated A-15 Conveyor (x1) 2769 | -7/Factory | Fabricated P-60 Hacker (x2) 3001 | -7/Factory | Build established: Hacker-Scout 3052 | -7/Factory | Entered another Factory area 3052 | -6/Factory | Accompanied by 7 allies 3054 | -6/Factory | Reached level 12 3054 | -6/Factory | Reached level 13 3203 | -6/Factory | Identified exit to DSF 3251 | -6/Factory | Entered DSF 3251 | -6/DSF | Accompanied by 7 allies 3253 | -6/DSF | Reached level 14 3268 | -6/DSF | Core integrity fell below 50% 3269 | -6/DSF | Additional patrols routed to DSF 3397 | -6/DSF | Discovered new exit (range 15) 3403 | -6/DSF | Lost 3 allies 3578 | -6/DSF | Reached level 15 3589 | -6/DSF | Sterilization system engaged 3609 | -6/DSF | Ambient heat levels rising (+10) 3609 | -6/DSF | Identified exit to Factory 3611 | -6/DSF | Entered Factory 3611 | -5/Factory | Accompanied by 3 allies 3613 | -5/Factory | Reached level 16 3986 | -5/Factory | Lost 3 allies 4033 | -5/Factory | Reached level 17 4163 | -5/Factory | Fabricated P-70 Sage (x2) 4202 | -5/Factory | Fabricated P-70 Sage (x2) 4235 | -5/Factory | Fabricated P-70 Sage? 4282 | -5/Factory | Fabricated P-70 Sage (x2) 4312 | -5/Factory | Fabricated P-70 Sage? 4358 | -5/Factory | Fabricated P-70 Sage (x2) 4526 | -5/Factory | Identified exit to Upper Caves 4576 | -5/Factory | Build established: Commander-Scout 4649 | -5/Factory | Entered Upper Caves 4649 | -5/Upper Caves | Accompanied by 13 allies 4650 | -5/Upper Caves | Reached level 18 4697 | -5/Upper Caves | Met a Warlord Commander 4698 | -5/Upper Caves | Learned location of Warlord (-5) 4699 | -5/Upper Caves | Warlord Commander delivered Encrypted Comm Array 4699 | -5/Upper Caves | Upgraded with Utility slot (x1) 4699 | -5/Upper Caves | Found Encrypted Comm Array 4778 | -5/Upper Caves | Sage 6e assimilated hostile G-67 Veteran 4781 | -5/Upper Caves | Reached level 19 5015 | -5/Upper Caves | Attracted the attention of an 0b10 checkpoint 5061 | -5/Upper Caves | Discovered new exit (range 11) 5064 | -5/Upper Caves | Identified exit to Upper Caves 5358 | -5/Upper Caves | Upgraded with Weapon slot (x1) 5373 | -5/Upper Caves | Upgraded with Utility slot (x1) 5373 | -5/Upper Caves | Found Alien Artifact 5373 | -5/Upper Caves | Identified Dimensional Node Initializer 5373 | -5/Upper Caves | Initialized slip node 5456 | -5/Upper Caves | Entered another Upper Caves area 5456 | -5/Upper Caves | Accompanied by 14 allies 5491 | -5/Upper Caves | Reached level 20 5582 | -5/Upper Caves | Attracted the attention of an 0b10 checkpoint 5583 | -5/Upper Caves | Sage 6b assimilated hostile Y-64 Sentinel 5630 | -5/Upper Caves | Learned location of Armory (-4) 5636 | -5/Upper Caves | Discovered new exit (range 5) 5637 | -5/Upper Caves | Identified exit to Factory 5734 | -5/Upper Caves | Discovered new exit (range 13) 5804 | -5/Upper Caves | Identified exit to Warlord 5877 | -5/Upper Caves | Upgraded with Utility slot (x1) 5931 | -5/Upper Caves | Entered Warlord 5931 | -5/Warlord | Accompanied by 14 allies 5943 | -5/Warlord | System corruption cleaned by Quarantine Array 5977 | -5/Warlord | Met Warlord 5977 | -5/Warlord | Reached level 21 6002 | -5/Warlord | Warlord's base attacked by MAIN.C 6024 | -5/Warlord | Found Prototype Piercing Weapon 6024 | -5/Warlord | Identified Vortex Lance 6140 | -5/Warlord | Opened side exit 6195 | -5/Warlord | Discovered new exit (range 13) 6205 | -5/Warlord | Sage 6f assimilated hostile S-27 Virus 6231 | -5/Warlord | Identified exit to Proximity Caves 6246 | -5/Warlord | Lost 3 allies 6288 | -5/Warlord | Entered Proximity Caves 6288 | -4/Proximity Caves | Accompanied by 12 allies 6290 | -4/Proximity Caves | Reached level 22 6342 | -4/Proximity Caves | Learned Research non-interactive machine intel 6438 | -4/Proximity Caves | Attracted the attention of an 0b10 checkpoint 6524 | -4/Proximity Caves | Reached level 23 6556 | -4/Proximity Caves | Discovered exit to Factory (range 6) 6633 | -4/Proximity Caves | Spotted B-86 Titan 6643 | -4/Proximity Caves | Allies destroyed B-86 Titan 6905 | -4/Proximity Caves | Entered Factory 6905 | -4/Factory | Accompanied by 13 allies 6906 | -4/Factory | Identified exit to Armory 6907 | -4/Factory | Reached level 24 6908 | -4/Factory | Identified exit to Garrison 6910 | -4/Factory | Entered Garrison 6910 | -4/Garrison | Accompanied by 13 allies 6918 | -4/Garrison | Triggered checkpoint 6946 | -4/Garrison | Triggered checkpoint 6958 | -4/Garrison | Discovered new exit (range 5) 6959 | -4/Garrison | Identified exit to Factory 6965 | -4/Garrison | Sage 6c assimilated hostile S-27 Virus 6997 | -4/Garrison | Spotted B-86 Titan 7006 | -4/Garrison | Triggered checkpoint 7011 | -4/Garrison | Upgraded with Propulsion slot (x1) 7029 | -4/Garrison | Allies destroyed B-86 Titan 7038 | -4/Garrison | Triggered checkpoint 7048 | -4/Garrison | Triggered checkpoint 7053 | -4/Garrison | Reached level 25 7060 | -4/Garrison | Sage 6c assimilated hostile G-67 Veteran 7153 | -4/Garrison | Upgraded with Utility slot (x1) 7163 | -4/Garrison | Lost 8 allies 7171 | -4/Garrison | Spotted B-86 Titan 7186 | -4/Garrison | Phase Generator disabled 7231 | -4/Garrison | Discovered new exit (range 9) 7234 | -4/Garrison | Identified exit to Research 7271 | -4/Garrison | Attempted to access garrison exit controls, blocked by remote lockdown 7325 | -4/Garrison | Entered Factory 7325 | -4/Factory | Accompanied by 7 allies 7411 | -4/Factory | Build established: Hacker-Scout 7496 | -4/Factory | Fabricated P-70 Sage (x2) 7548 | -4/Factory | Fabricated P-70 Sage? 7849 | -4/Factory | Build established: Commander-Scout 8019 | -4/Factory | Reached level 26 8197 | -4/Factory | Fabricated P-70 Sage? 8325 | -4/Factory | First assault squad dispatched 8361 | -4/Factory | Lost 4 allies 8365 | -4/Factory | Identified exit to Upper Caves 8388 | -4/Factory | Identified exit to Garrison 8413 | -4/Factory | Entered Garrison 8413 | -4/Garrison | Accompanied by 8 allies 8433 | -4/Garrison | Triggered checkpoint 8456 | -4/Garrison | Spotted B-86 Titan 8478 | -4/Garrison | Allies destroyed B-86 Titan 8478 | -4/Garrison | Reached level 27 8493 | -4/Garrison | Triggered checkpoint 8497 | -4/Garrison | Destroyed 7 combat bots 8499 | -4/Garrison | Triggered checkpoint 8508 | -4/Garrison | Lost 4 allies 8535 | -4/Garrison | Triggered checkpoint 8578 | -4/Garrison | Lost 4 allies 8629 | -4/Garrison | Discovered exit to Armory (range 14) 8671 | -4/Garrison | Triggered checkpoint 8708 | -4/Garrison | Discovered exit to Armory (range 10) 8761 | -4/Garrison | Discovered exit to Armory (range 14) 8762 | -4/Garrison | Spotted B-75 Beast 8772 | -4/Garrison | Build established: Hacker-Scout 8792 | -4/Garrison | Destroyed B-75 Beast 8839 | -4/Garrison | Triggered checkpoint 8971 | -4/Garrison | Triggered checkpoint 8989 | -4/Garrison | Entered Armory 9126 | -4/Armory | Fabricated A-02 Transporter? 9206 | -4/Armory | Fabricated P-70 Sage? 9239 | -4/Armory | Build established: Hacker-Ninja 9460 | -4/Armory | Fabricated P-70 Sage (x2) 9489 | -4/Armory | First assault squad dispatched 9502 | -4/Armory | Fabricated P-70 Sage? 10397 | -4/Armory | Sage 7j assimilated hostile G-67 Veteran 10485 | -4/Armory | Build established: Commander-Ninja 10649 | -4/Armory | Reached level 28 11067 | -4/Armory | Lost 5 allies 11092 | -4/Armory | High security lockdown imminent 11101 | -4/Armory | Entered Research 11102 | -3/Research | Loaded intel: 70 non-interactive machine locations 11111 | -3/Research | Identified exit to DSF 11131 | -3/Research | Lost 5 allies 11291 | -3/Research | Build established: Hacker-Ninja 11363 | -3/Research | Reached level 29 11461 | -3/Research | Spotted B-86 Titan 11640 | -3/Research | Core integrity fell below 50% 11659 | -3/Research | Identified exit to Research 11697 | -3/Research | Entered another Research area 11697 | -2/Research | Warlord forces began assault on 0b10 11698 | -2/Research | Core integrity fell below 50% 11718 | -2/Research | Reached level 30 11722 | -2/Research | Distinguished unit "Department No. 42" dispatched to help 11774 | -2/Research | Fabricated P-70 Sage? 11807 | -2/Research | Research machine network offline 11844 | -2/Research | Discovered new exit (range 9) 11917 | -2/Research | Met up with Warlord 11955 | -2/Research | Spotted Striker 11955 | -2/Research | Spotted Striker 11959 | -2/Research | Destroyed Striker 12005 | -2/Research | Lost 4 allies 12043 | -2/Research | Discovered new exit (range 11) 12159 | -2/Research | Upgraded with Weapon slot (x1) 12159 | -2/Research | Upgraded with Weapon slot (x1) 12216 | -2/Research | Found Prototype Hackware 12216 | -2/Research | Identified Exp. Hacking Suite 12301 | -2/Research | Spotted Executioner 12301 | -2/Research | Spotted Striker 12307 | -2/Research | Reached level 31 12312 | -2/Research | Rewired Executioner 12324 | -2/Research | Spotted Striker 12338 | -2/Research | Destroyed Striker 12396 | -2/Research | Discovered new exit (range 10) 12398 | -2/Research | Identified exit to Access 12453 | -2/Research | Borebot progress halted 12454 | -2/Research | Spotted B-90 Cyclops 12467 | -2/Research | Destroyed B-90 Cyclops 12490 | -2/Research | Discovered new exit (range 6) 12492 | -2/Research | Identified exit to Testing 12737 | -2/Research | Spotted Striker 12743 | -2/Research | Spotted Striker 12755 | -2/Research | Destroyed Striker 12772 | -2/Research | Spotted Executioner 12779 | -2/Research | Destroyed Executioner 12803 | -2/Research | Borebot progress halted 12813 | -2/Research | Lost 6 allies 12829 | -2/Research | Spotted Striker 12844 | -2/Research | Borebot progress halted 12861 | -2/Research | Spotted Striker 12862 | -2/Research | Spotted Striker 12929 | -2/Research | Lost 5 allies 13000 | -2/Research | Spotted Striker 13020 | -2/Research | Spotted Striker 13028 | -2/Research | Spotted Striker 13049 | -2/Research | Spotted Striker 13051 | -2/Research | Destroyed Striker 13080 | -2/Research | Lost 7 allies 13172 | -2/Research | Spotted Executioner 13211 | -2/Research | Lost 3 allies 13213 | -2/Research | Entered Access 13215 | -1/Access | Reached level 32 13215 | -1/Access | Reached level 33 13400 | -1/Access | Spotted B-99 Colossus 13463 | -1/Access | First assault squad dispatched 13525 | -1/Access | Core integrity fell below 50% 13678 | -1/Access | Core integrity fell below 20% 13760 | -1/Access | Search patrols dispatched 13762 | -1/Access | Identified exit to Command 13796 | -1/Access | Spotted B-99 Colossus 13796 | -1/Access | Spotted B-99 Colossus 13797 | -1/Access | Destroyed by B-99 Colossus with Multirail Last Messages --------------- 13759_ Terminal x2 13760_ ALERT: Heightened foreign activity detected, multiple search patrols dispatched. 13762_ Connecting with Terminal... >>Access(Branch) Found 1 branch access point: (152,91) Command Map updated. 13764_ Slug penetrates Wall. 13767_ Anti-Orbital Battery disabled. 13793_ Sealed Heavy Doors breached. 13794_ Penetrated by Slug. 13796_ H-88 Terminator knocked back. 13796_ Slug penetrates Sealed Heavy Doors. 13796_ Slug penetrates Wall. 13797_ Slug penetrates Sealed Heavy Doors. 13797_ Acquired 8 matter. 13797_ Machine Analyzer destroyed. 13797_ Critical hit (Blast). 13797_ Penetrated by Slug. Map ----- +----------------------------------------------------+ | ????# ############# # #????????? | | ????# + H + = #????????? | | ????# ########### # == #????????? | | ????# #??# !# ### # = !#????????? | | ????# #??# # #?# ########???k????? | | ????# t #??# + ###+#######????k????? | | ????# #??# ###### ! #?????????? | | ????# """"" #??# #????# #?????????? | | ????# """"" #??# #????# #?????????? | | ????# """"" #??########????# #???u?????? | | ??# """"" #??????????????###########????t????? | | =?# """"" #?????????????????????????????????k? | | = # """"" #??????????????????????????????????? | | # ???? #??????????????????????????????????? | | * #?????? #??????????????????????????????????? | | #??????#####?????????????????????????????????? | | ???????? #?????????????????????????????????? | | !???????? #?????????????????????????????????? | | /########## #?????????????????????????????????? | | + #?????????????????????????????????? | | # #???????????>?????????????????????? | | ggg g # #?????????????????????????????????? | | #? #?????????????????????????????????? | | #####g#? * ##????????????????###?????????????? | | #???# #?? #BB #####"""##### BB#?????????????? | | #???# #??###BB @ BB#?????????????? | | ### #???# #????# h h #?????????????? | | ??# #???# #????# % #?????????????? | | ??# #???# #????#########"" #########?????????????? | | ??# #???# #????????????# #?????????????????????? | | ??#/#???# #????????????# #?????????????????????? | | ???t##### #????????????# #?????????????????????? | | t?? # ############## ####### ???????????? | | ??? # A ??????????? | | ??? + Y ???????k??? | | ??? # * kA k ??????????? | | ??? # ###############+######## ??????????? | | ??? ###+###?????????????????????????+#???????????? | | ?????????????????????????????????????????????????? | | #####????????????????????????????????????????????? | | #????????????????????????????????????????????? | | #????????????????????????????????????????????? | | #????????????????????????????????????????????? | | #????????????????????????????????????A???????? | | #????????????????????????????????????????????? | | #????????????????????????????????????????????? | | #????????????????????????????????????????????? | | +????????????????????????????????????????w???? | | #????????????????????????????????????????????? | | #????????????????????????????????????????R???? | +----------------------------------------------------+ Best States ------------- Heat Dissipation 93 Energy Generation 41 Energy Capacity 340 Matter Stores 300 Matter Capacity 300 Sight Range 16 Robot Scan Range 46 Terrain Scan Range 14 Terrain Scan Density 910 Jamming Range 12 Additional Mass Support 6 Armor Coverage 225 Resistance: KI 40 Resistance: TH 40 Resistance: EX 40 Resistance: EM 20 Resistance: I 20 Resistance: S 20 Resistance: P 20 Phase Shifting 15 Evasion (%) 72 Targeting Accuracy 20 Offensive Hacking 41 Defensive Hacking 20 Authchip Count 4 Item Schematics ----------------- Imp. EM Shotgun | -8/Materials | Scanalyzed Sensor Array | -8/Materials | Hacked Adv. Heavy Siege Treads | -1/Access | Hacked Robot Schematics ------------------ Y-54 Guardian | -7/Factory | Hacked H-66 Slayer | -7/Factory | Hacked P-60 Hacker | -7/Factory | Hacked A-15 Conveyor | -7/Factory | Hacked P-70 Sage | -5/Factory | Hacked Fabricated ------------ Sensor Array | x2 | -7/Factory | Authchip P-60 Hacker | x2 | -7/Factory | Authchip A-15 Conveyor | x1 | -7/Factory | Authchip P-60 Hacker | x2 | -7/Factory P-70 Sage | x2 | -5/Factory | Authchip P-70 Sage | x2 | -5/Factory | Authchip P-70 Sage | x2 | -5/Factory | Authchip P-70 Sage | x2 | -5/Factory | Authchip P-70 Sage | x2 | -5/Factory | Authchip P-70 Sage | x2 | -5/Factory | Authchip P-70 Sage | x2 | -4/Factory | Authchip P-70 Sage | x2 | -4/Factory | Authchip P-70 Sage | x2 | -4/Factory | Authchip A-02 Transporter | x1 | -4/Armory | Preloaded P-70 Sage | x2 | -4/Armory | Authchip P-70 Sage | x2 | -4/Armory | Authchip P-70 Sage | x2 | -4/Armory | Authchip P-70 Sage | x2 | -2/Research Alien Tech Used ----------------- Dimensional Node Initializer Achievements -------------- All-out Warlord Challenges ------------ None RPGLIKE | -11 -10 -10 -10 -9 -8 -7 -6 -6 -5 -5 -5 -5 -4 -4 -4 -4 -4 -4 -3 -2 -1 --------- Run | Yrd Mat Min Exi Min Mat Fac Fac DSF Fac Upp Upp War Pro Fac Gar Fac Gar Arm Res Res Acc Levels Raised 32 | . . 2 . 1 5 2 2 2 2 2 1 1 2 1 1 1 1 1 1 2 2 XP Earned 52440 | 4000 1275 2566 200 1199 6873 3793 2533 2849 3943 2694 1656 1814 2171 1092 2144 1530 1118 1630 974 4051 2335 XP Spent 51870 | 1200 2700 2625 . 1100 7430 2775 . . 2240 5100 3700 . . . 10700 1670 1700 1475 . 2500 4955 Upgrades 110 | 3 10 7 . 1 18 6 . . 12 3 2 . . . 16 3 2 7 . 2 18 Power Slot 1 | . . . . . 1 . . . . . . . . . . . . . . . . Propulsion Slot 4 | . 2 . . 1 . . . . . . . . . . 1 . . . . . . Utility Slot 9 | . 1 1 . . 2 1 . . . 2 1 . . . 1 . . . . . . Weapon Slot 4 | 1 . . . . . . . . . 1 . . . . . . . . . 2 . Core Integrity 17 | . . . . . 8 . . . . . . . . . . . . 5 . . 4 Heat Dissipation 9 | . 5 . . . . . . . 4 . . . . . . . . . . . . Energy Generation 2 | . . . . . . . . . . . . . . . . . . 2 . . . Mass Support 3 | 2 . . . . . . . . . . 1 . . . . . . . . . . Inventory Capacity 4 | . 1 . . . 3 . . . . . . . . . . . . . . . . Sensor Range 15 | . . 2 . . . 3 . . . . . . . . . . . . . . 10 Terrain Scan Density 9 | . . . . . . . . . 8 . . . . . . 1 . . . . . Ranged Accuracy 6 | . . 2 . . . . . . . . . . . . . 2 2 . . . . Melee Accuracy 4 | . . . . . . . . . . . . . . . . . . . . . 4 Hack Attack % 3 | . . . . . 3 . . . . . . . . . . . . . . . . Hack Defense % 2 | . 1 . . . 1 . . . . . . . . . . . . . . . . KI Resistance % 4 | . . . . . . . . . . . . . . . 4 . . . . . . TH Resistance % 4 | . . . . . . . . . . . . . . . 4 . . . . . . EX Resistance % 4 | . . . . . . . . . . . . . . . 4 . . . . . . TH Damage % 4 | . . . . . . 2 . . . . . . . . 2 . . . . . . EX Damage % 2 | . . 2 . . . . . . . . . . . . . . . . . . . Protomatter Created 2902 | . 99 145 . 101 172 172 . 100 170 . 20 . . . 156 244 238 700 108 409 68 Integrity Restored 8669 | . 138 151 . 38 156 321 . 486 372 315 287 191 121 . 615 281 198 1881 324 2794 . Core 7120 | . 114 116 . 28 156 321 . 486 360 154 232 191 70 . 507 232 167 1560 324 2102 . Parts 1549 | . 24 35 . 10 . . . . 12 161 55 . 51 . 108 49 31 321 . 692 . Protomatter Decayed 6142 | . 29 114 . 94 58 . . 56 45 249 . 179 136 . 320 227 403 307 . 3783 142 Game ------ Seed LauncherFireReconfigurator Manual? 0 Play Time 05:19:14 Cumulative 102.1 hours Start 2024.09.14 @ 12:15:54 End 2024.09.16 @ 07:27:54 Sessions 5 Manual Loads 0 Difficulty Adventurer Special Mode Winter2019/RPGLIKE Game No. 61 Rogue 0 Adventurer 61 Explorer 0 Win Type - Total 4 Types 2/0/1/1/0/0/0/0/0 Lore% 52 Gallery% 53 Achievement% 69 Wizard Run 0 Options --------- Layout 2 ASCII 0 Keyboard 0 Movement Numpad Keybinds 0 Fullscreen 2 Font 24/Smallcaps Map View 50x44 Zoom Use 0% Tactical HUD 1 Map Filters NONE Filters NONE Steam 1 RUN: 85ddb2a9-724b-422c-80ab-4855c075aab0